fUSD/lending_fUSD_20240514
["ID","MTS","AMOUNT","RATE_DAILY","PERIOD"]
[326988964,1715688634560,-530.32562658,0.00012997,2]
[326988965,1715688634570,-518.40829775,0.00012997,2]
[326988966,1715688634579,-500.0,0.00012997,2]
[326988967,1715688634588,-500.0,0.00012997,2]
[326988968,1715688634598,-507.20643355,0.00012997,2]
[326988969,1715688634608,-528.40268704,0.00012997,2]
[326988970,1715688634622,-500.0,0.00012997,2]
[326988971,1715688634631,-500.0,0.00012997,2]
[326988972,1715688634641,-506.57740515,0.00012997,2]
[326988973,1715688634652,-500.0,0.00012997,2]
[326988974,1715688634661,-500.0,0.00012997,2]
[326988975,1715688634670,-505.41374613,0.00012997,2]
[326988976,1715688634679,-500.0,0.00012997,2]
[326988977,1715688634691,-500.0,0.00012997,2]
[326988978,1715688634700,-500.0,0.00012997,2]
[326988979,1715688634709,-500.0,0.00012997,2]
[326988980,1715688634720,-500.0,0.00012997,2]
[326988981,1715688634729,-500.0,0.00012997,2]
[326988982,1715688634738,-507.93991288,0.00012997,2]
[326988983,1715688634748,-503.0048672,0.00012997,2]
[326988984,1715688634757,-516.6877031,0.00012997,2]
[326988985,1715688634767,-509.31697578,0.00012997,2]
[326988986,1715688634776,-471.79466842,0.00012997,2]
[326988987,1715688634785,-500.0,0.00012997,2]
[326988988,1715688634794,-503.2507854,0.00012997,2]
[326988989,1715688634804,-500.0,0.00012997,2]
[326988990,1715688634813,-518.88733279,0.00012997,2]
[326988991,1715688634823,-510.12740652,0.00012997,2]
[326988992,1715688634832,-502.85830149,0.00012997,2]
[326988993,1715688634841,-500.0,0.00012997,2]
[326988994,1715688634850,-500.0,0.00012997,2]
[326988995,1715688634860,-500.0,0.00012997,2]
[326988996,1715688634869,-499.99742561,0.00012997,2]
[326988997,1715688634878,-503.53041611,0.00012997,2]
[326988998,1715688634887,-506.11605862,0.00012997,2]
[326988999,1715688634897,-502.00282375,0.00012997,2]
[326989000,1715688634906,-506.07682415,0.00012997,2]
[326989001,1715688634916,-516.94932349,0.00012997,2]
[326989002,1715688634926,-513.61268823,0.00012997,2]
[326989003,1715688634936,-502.14114682,0.00012997,2]
[326989004,1715688634945,-500.0,0.00012997,2]
[326989005,1715688634955,-507.08463746,0.00012997,2]
[326989006,1715688634965,-500.0,0.00012997,2]
[326989007,1715688634977,-505.5619932,0.00012997,2]
[326989008,1715688634986,-500.0,0.00012997,2]
[326989009,1715688634996,-500.0,0.00012997,2]
[326989010,1715688635006,-500.0,0.00012997,2]
[326989011,1715688635015,-500.0,0.00012997,2]
[326989012,1715688635025,-1565.41,0.00012997,2]
[326989013,1715688635034,-503.14827512,0.00012997,2]
[326989014,1715688635044,-500.0,0.00012997,2]
[326989015,1715688635054,-323.51563203,0.00012997,2]
[326989016,1715688635064,-509.26649716,0.00012997,2]
[326989017,1715688635074,-500.0,0.00012997,2]
[326989018,1715688635083,-505.72402678,0.00012997,2]
[326989019,1715688635093,-500.0,0.00012997,2]
[326989020,1715688635103,-500.0,0.00012997,2]
[326989021,1715688635112,-521.91631349,0.00012997,2]
[326989022,1715688635121,-500.0,0.00012997,2]
[326989023,1715688635130,-500.0,0.00012997,2]
[326989024,1715688635140,-502.61304064,0.00012997,2]
[326989025,1715688635149,-500.0,0.00012997,2]
[326989026,1715688635159,-500.0,0.00012997,2]
[326989027,1715688635169,-500.0,0.00012997,2]
[326989028,1715688635179,-500.0,0.00012997,2]
[326989029,1715688635188,-500.0,0.00012997,2]
[326989030,1715688635197,-500.0,0.00012997,2]
[326989031,1715688635207,-500.0,0.00012997,2]
[326989032,1715688635217,-500.0,0.00012997,2]
[326989033,1715688635230,-500.0,0.00012997,2]
[326989034,1715688635239,-500.0,0.00012997,2]
[326989035,1715688635248,-500.0,0.00012997,2]
[326989036,1715688635454,-500.0,0.00012997,2]
[326989037,1715688635464,-531.02471201,0.00012997,2]
[326989038,1715688635474,-500.0,0.00012997,2]
[326989039,1715688635483,-562.58,0.00012997,2]
[326989040,1715688635492,-500.0,0.00012997,2]
[326989041,1715688635502,-506.09235706,0.00012997,2]
[326989042,1715688635512,-500.0,0.00012997,2]
[326989043,1715688635521,-500.0,0.00012997,2]
[326989044,1715688635531,-500.0,0.00012997,2]
[326989045,1715688635540,-500.0,0.00012997,2]
[326989046,1715688635549,-500.0,0.00012997,2]
[326989047,1715688635559,-501.48143259,0.00012997,2]
[326989048,1715688635568,-500.0,0.00012997,2]
[326989049,1715688635577,-500.0,0.00012997,2]
[326989050,1715688635586,-162.93,0.00012997,2]
[326989051,1715688635596,-500.0,0.00012997,2]
[326989052,1715688635609,-500.0,0.00012997,2]
[326989053,1715688635618,-500.0,0.00012997,2]
[326989054,1715688635628,-531.48703098,0.00012997,2]
[326989055,1715688635637,-500.0,0.00012997,2]
[326989056,1715688635647,-500.0,0.00012997,2]
[326989057,1715688635657,-511.68812218,0.00012997,2]
[326989058,1715688635666,-500.0,0.00012997,2]
[326989059,1715688635676,-1548.69,0.00012997,2]
[326989060,1715688635687,-500.0,0.00012997,2]
[326989061,1715688635697,-500.0,0.00012997,2]
[326989062,1715688635707,-500.0,0.00012997,2]
[326989063,1715688635716,-500.0,0.00012997,2]
[326989064,1715688635726,-519.09236909,0.00012997,2]
[326989065,1715688635735,-1630.21,0.00012997,2]
[326989066,1715688635744,-500.0,0.00012997,2]
[326989067,1715688635754,-500.0,0.00012997,2]
[326989068,1715688635763,-500.0,0.00012997,2]
[326989069,1715688635772,-502.75795173,0.00012997,2]
[326989070,1715688635782,-500.0,0.00012997,2]
[326989071,1715688635791,-500.0,0.00012997,2]
[326989072,1715688635800,-200.54885542,0.00012997,2]
[326989073,1715688635810,-500.0,0.00012997,2]
[326989074,1715688635819,-500.0,0.00012997,2]
[326989075,1715688635828,-500.0,0.00012997,2]
[326989076,1715688635837,-500.0,0.00012997,2]
[326989077,1715688635847,-500.0,0.00012997,2]
[326989078,1715688635856,-500.0,0.00012997,2]
[326989079,1715688635866,-500.0,0.00012997,2]
[326989080,1715688635875,-586.24,0.00012997,2]
[326989081,1715688635885,-500.0,0.00012997,2]
[326989082,1715688635895,-500.0,0.00012997,2]
[326989083,1715688635904,-500.0,0.00012997,2]
[326989084,1715688635913,-500.0,0.00012997,2]
[326989085,1715688635922,-500.0,0.00012997,2]
[326989086,1715688635932,-861.96,0.00012997,2]
[326989087,1715688635942,-500.0,0.00012997,2]
[326989088,1715688635951,-500.0,0.00012997,2]
[326989089,1715688635961,-484.40349237,0.00012998,2]
[326989090,1715688635972,-5269.99465171,0.00012998,2]
[326989091,1715688635982,-1213.37270844,0.00012998,2]
[326989092,1715688635991,-3282.0222397,0.00012998,2]
[326989093,1715688636000,-822.8064618,0.00012998,2]
[326989094,1715688636009,-155.99431535,0.00012998,2]
[326989095,1715688636019,-3400.0,0.00012998,2]
[326989096,1715688636028,-157.5197383,0.00012998,2]
[326989097,1715688636038,-1258.44548734,0.00012998,2]
[326989098,1715688636049,-175.75116173,0.00012998,2]
[326989099,1715688636058,-160.97969123,0.00012998,2]
[326989100,1715688636068,-319.39260741,0.00012998,2]
[326989101,1715688636077,-306.10635116,0.00012998,2]
[326989102,1715688636087,-155.79798778,0.00012998,2]
[326989103,1715688636096,-159.26472553,0.00012998,2]
[326989104,1715688636106,-1254.98401423,0.00012998,2]
[326989105,1715688636116,-257.85125369,0.00012998,2]
[326989106,1715688636125,-266.15160659,0.00012998,2]
[326989107,1715688636134,-488.3397664,0.00012998,2]
[326989108,1715688636144,-210.46600037,0.00012998,2]
[326989109,1715688636153,-268.20527789,0.00012998,2]
[326989110,1715688636163,-3005.88174248,0.00012998,2]
[326989111,1715688636172,-4736.57913706,0.00012998,2]
[326989112,1715688636181,-156.41838285,0.00012998,2]
[326989113,1715688636190,-155.43071651,0.00012998,2]
[326989114,1715688636200,-155.68758554,0.00012998,2]
[326989115,1715688636209,-275.11238745,0.00012998,2]
[326989116,1715688636219,-246.38481722,0.00012998,2]
[326989117,1715688636230,-158.45591692,0.00012998,2]
[326989118,1715688636239,-320.98051678,0.00012998,2]
[326989119,1715688636249,-9635.73622343,0.00012998,2]
[326989120,1715688636259,-525.53925572,0.00012998,2]
[326989121,1715688636268,-155.0,0.00012998,2]
[326989122,1715688636278,-85.0702251,0.00012998,2]
[326989127,1715688637803,-724.66202148,8.603e-05,2]
[326989133,1715688637918,-1118.99953452,8.603e-05,2]
[326989134,1715688637928,-500.0,0.00012996,2]
[326989135,1715688637938,-73.35364252,0.00012998,2]
[326989136,1715688637948,-212.92068276,0.00012998,2]
[326989137,1715688637957,-10454.07635838,0.00012998,2]
[326989138,1715688637967,-31.04978182,0.00012998,2]
[326989139,1715688638145,-293.5444453,0.00012998,2]
[326989140,1715688638155,-500.0,0.00012998,2]
[326989141,1715688638164,-224.66202148,0.00012998,2]
[326989142,1715688638174,-500.0,0.00012998,2]
[326989143,1715688638184,-500.0,0.00012998,2]
[326989144,1715688638193,-500.0,0.00012998,2]
[326989145,1715688638202,-542.64,0.00012998,2]
[326989146,1715688638212,-414.05,0.00012998,2]
[326989147,1715688638221,-500.0,0.00012998,2]
[326989148,1715688638232,-165.64,0.00012998,2]
[326989149,1715688638241,-500.0,0.00012998,2]
[326989150,1715688638250,-500.0,0.00012998,2]
[326989151,1715688638260,-500.0,0.00012998,2]
[326989152,1715688638269,-444.1,0.00012998,2]
[326989153,1715688638279,-500.0,0.00012998,2]
[326989154,1715688638289,-483.27043428,0.00012998,2]
[326989155,1715688638298,-500.0,0.00012998,2]
[326989156,1715688638307,-500.0,0.00012998,2]
[326989157,1715688638316,-195.61458435,0.00012998,2]
[326989159,1715688638326,-500.0,0.00012998,2]
[326989160,1715688638339,-500.0,0.00012998,2]
[326989161,1715688638348,-500.0,0.00012998,2]
[326989162,1715688638358,-450.28585582,0.00012998,2]
[326989163,1715688638367,-310.97627355,0.00012998,2]
[326989164,1715688638376,-500.0,0.00012998,2]
[326989165,1715688638385,-150.0,0.00012998,2]
[326989166,1715688638395,-500.0,0.00012998,2]
[326989167,1715688638405,-445.19,0.00012998,2]
[326989168,1715688638416,-500.0,0.00012998,2]
[326989169,1715688638425,-500.0,0.00012998,2]
[326989170,1715688638435,-500.0,0.00012998,2]
[326989171,1715688638444,-594.7390456,0.00012998,2]
[326989172,1715688638454,-500.0,0.00012998,2]
[326989173,1715688638463,-204.84,0.00012998,2]
[326989174,1715688638473,-627.31,0.00012998,2]
[326989175,1715688638482,-483.06,0.00012998,2]
[326989176,1715688638492,-328.38,0.00012998,2]
[326989177,1715688638501,-500.0,0.00012998,2]
[326989178,1715688638511,-500.0,0.00012998,2]
[326989179,1715688638520,-500.0,0.00012998,2]
[326989180,1715688638532,-500.0,0.00012998,2]
[326989181,1715688638543,-191.85,0.00012998,2]
[326989182,1715688638553,-506.51,0.00012998,2]
[326989183,1715688638562,-500.0,0.00012998,2]
[326989184,1715688638571,-500.0,0.00012998,2]
[326989185,1715688638581,-500.0,0.00012998,2]
[326989186,1715688638591,-500.0,0.00012998,2]
[326989187,1715688638602,-500.0,0.00012998,2]
[326989188,1715688638614,-500.0,0.00012998,2]
[326989189,1715688638625,-500.0,0.00012998,2]
[326989190,1715688638635,-851.74,0.00012998,2]
[326989191,1715688638645,-500.0,0.00012998,2]
[326989192,1715688638655,-500.0,0.00012998,2]
[326989193,1715688638667,-500.0,0.00012998,2]
[326989194,1715688638677,-500.0,0.00012998,2]
[326989195,1715688638688,-500.0,0.00012998,2]
[326989196,1715688638699,-500.0,0.00012998,2]
[326989197,1715688638709,-500.0,0.00012998,2]
[326989198,1715688638719,-1565.41,0.00012998,2]
[326989199,1715688638729,-592.6,0.00012998,2]
[326989200,1715688638739,-500.0,0.00012998,2]
[326989201,1715688638749,-500.0,0.00012998,2]
[326989202,1715688638760,-500.0,0.00012998,2]
[326989203,1715688638771,-500.0,0.00012998,2]
[326989204,1715688638780,-500.0,0.00012998,2]
[326989205,1715688638790,-500.0,0.00012998,2]
[326989206,1715688638800,-500.0,0.00012998,2]
[326989207,1715688638809,-500.0,0.00012998,2]
[326989208,1715688638819,-500.0,0.00012998,2]
[326989209,1715688638829,-500.0,0.00012998,2]
[326989210,1715688638839,-500.0,0.00012998,2]
[326989211,1715688638848,-500.0,0.00012998,2]
[326989212,1715688638859,-663.22,0.00012998,2]
[326989213,1715688638868,-663.22,0.00012998,2]
[326989214,1715688638878,-500.0,0.00012998,2]
[326989215,1715688638888,-500.0,0.00012998,2]
[326989216,1715688638897,-497.57,0.00012998,2]
[326989217,1715688638907,-500.0,0.00012998,2]
[326989218,1715688638917,-500.0,0.00012998,2]
[326989219,1715688638927,-500.0,0.00012998,2]
[326989220,1715688638939,-500.0,0.00012998,2]
[326989221,1715688638948,-500.0,0.00012998,2]
[326989222,1715688638959,-500.0,0.00012998,2]
[326989223,1715688638968,-500.0,0.00012998,2]
[326989224,1715688638978,-500.0,0.00012998,2]
[326989225,1715688638987,-500.0,0.00012998,2]
[326989226,1715688638997,-500.0,0.00012998,2]
[326989227,1715688639008,-500.0,0.00012998,2]
[326989228,1715688639018,-500.0,0.00012998,2]
[326989229,1715688639027,-271.98,0.00012998,2]
[326989230,1715688639037,-901.16,0.00012998,2]
[326989231,1715688639047,-901.16,0.00012998,2]
[326989232,1715688639057,-500.0,0.00012998,2]
[326989233,1715688639066,-500.0,0.00012998,2]
[326989234,1715688639075,-500.0,0.00012998,2]
[326989235,1715688639085,-500.0,0.00012998,2]
[326989236,1715688639095,-500.0,0.00012998,2]
[326989237,1715688639104,-500.0,0.00012998,2]
[326989238,1715688639114,-500.0,0.00012998,2]
[326989239,1715688639123,-500.0,0.00012998,2]
[326989240,1715688639132,-500.0,0.00012998,2]
[326989241,1715688639142,-500.0,0.00012998,2]
[326989242,1715688639151,-500.0,0.00012998,2]
[326989243,1715688639161,-1548.69,0.00012998,2]
[326989244,1715688639170,-500.0,0.00012998,2]
[326989245,1715688639179,-500.0,0.00012998,2]
[326989246,1715688639188,-500.0,0.00012998,2]
[326989247,1715688639198,-1630.21,0.00012998,2]
[326989248,1715688639207,-500.0,0.00012998,2]
[326989249,1715688639216,-500.0,0.00012998,2]
[326989250,1715688639226,-549.88,0.00012998,2]
[326989251,1715688639236,-500.0,0.00012998,2]
[326989252,1715688639247,-500.0,0.00012998,2]
[326989253,1715688639256,-500.0,0.00012998,2]
[326989254,1715688639265,-500.0,0.00012998,2]
[326989255,1715688639276,-500.0,0.00012998,2]
[326989256,1715688639286,-500.0,0.00012998,2]
[326989257,1715688639296,-500.0,0.00012998,2]
[326989258,1715688639306,-500.0,0.00012998,2]
[326989259,1715688639315,-500.0,0.00012998,2]
[326989260,1715688639324,-500.0,0.00012998,2]
[326989261,1715688639334,-524.7,0.00012998,2]
[326989262,1715688639344,-524.7,0.00012998,2]
[326989263,1715688639353,-586.24,0.00012998,2]
[326989264,1715688639363,-500.0,0.00012998,2]
[326989265,1715688639372,-500.0,0.00012998,2]
[326989266,1715688639382,-500.0,0.00012998,2]
[326989267,1715688639391,-500.0,0.00012998,2]
[326989268,1715688639400,-500.0,0.00012998,2]
[326989269,1715688639410,-500.0,0.00012998,2]
[326989270,1715688639420,-500.0,0.00012998,2]
[326989271,1715688639430,-500.0,0.00012998,2]
[326989272,1715688639440,-500.0,0.00012998,2]
[326989273,1715688639450,-500.0,0.00012998,2]
[326989274,1715688639460,-861.96,0.00012998,2]
[326989275,1715688639470,-500.0,0.00012998,2]
[326989276,1715688639480,-500.0,0.00012998,2]
[326989277,1715688639490,-500.0,0.00012998,2]
[326989278,1715688639500,-187.16,0.00012998,2]
[326989279,1715688639510,-207.96587779,0.00012998,2]
[326989280,1715688639520,-469.43,0.00012998,2]
[326989281,1715688639530,-470.84655395,0.00012998,2]
[326989282,1715688639545,-29.15344605,0.00012998,2]
[326989283,1715688639554,-499.38,0.00012998,2]
[326989284,1715688639564,-37854.5596984,0.00012999,2]
[326989285,1715688639573,-732.2379545,0.00012999,2]
[326989286,1715688639583,-370.82893179,0.00012999,2]
[326989287,1715688639592,-1063.06077755,0.00012999,2]
[326989288,1715688639603,-155.0,0.00012999,2]
[326989289,1715688639616,-155.0,0.00012999,2]
[326989290,1715688639626,-5558.95156203,0.00012999,2]
[326989291,1715688639635,-151.0,0.00012999,2]
[326989292,1715688639644,-151.0,0.00012999,2]
[326989293,1715688639655,-170.301944,0.00012999,2]
[326989294,1715688639664,-500.0,0.00012999,2]
[326989295,1715688639673,-500.0,0.00012999,2]
[326989296,1715688639683,-349.05,0.00012999,2]
[326989297,1715688639694,-151.0,0.00012999,2]
[326989298,1715688639703,-151.0,0.00012999,2]
[326989299,1715688639713,-153.184176,0.00012999,2]
[326989301,1715688639722,-500.0,0.00012999,2]
[326989302,1715688639733,-500.0,0.00012999,2]
[326989303,1715688639743,-500.0,0.00012999,2]
[326989304,1715688639752,-264.042659,0.00012999,2]
[326989305,1715688639762,-226.851358,0.00012999,2]
[326989306,1715688639771,-154.85,0.00012999,2]
[326989307,1715688639781,-151.0,0.00012999,2]
[326989308,1715688639790,-226.851358,0.00012999,2]
[326989309,1715688639800,-500.0,0.00012999,2]
[326989310,1715688639809,-500.0,0.00012999,2]
[326989311,1715688639818,-416.18,0.00012999,2]
[326989312,1715688639828,-500.0,0.00012999,2]
[326989313,1715688639838,-483.6,0.00012999,2]
[326989314,1715688639847,-151.0,0.00012999,2]
[326989315,1715688639856,-500.0,0.00012999,2]
[326989316,1715688639865,-202.14,0.00012999,2]
[326989317,1715688639875,-287.368274,0.00012999,2]
[326989318,1715688639884,-287.368274,0.00012999,2]
[326989319,1715688639893,-500.0,0.00012999,2]
[326989320,1715688639903,-500.0,0.00012999,2]
[326989321,1715688639912,-516.52,0.00012999,2]
[326989322,1715688639922,-500.0,0.00012999,2]
[326989323,1715688639932,-500.0,0.00012999,2]
[326989324,1715688639941,-500.0,0.00012999,2]
[326989325,1715688640186,-500.0,0.00012999,2]
[326989326,1715688640197,-395.75,0.00012999,2]
[326989327,1715688640206,-151.0,0.00012999,2]
[326989328,1715688640215,-151.0,0.00012999,2]
[326989329,1715688640225,-435.22,0.00012999,2]
[326989330,1715688640237,-151.0,0.00012999,2]
[326989331,1715688640246,-151.0,0.00012999,2]
[326989332,1715688640256,-618.74,0.00012999,2]
[326989333,1715688640265,-500.0,0.00012999,2]
[326989334,1715688640274,-500.0,0.00012999,2]
[326989335,1715688640306,-500.0,0.00012999,2]
[326989336,1715688640316,-500.0,0.00012999,2]
[326989337,1715688640325,-649.24,0.00012999,2]
[326989338,1715688640334,-151.0,0.00012999,2]
[326989339,1715688640344,-500.0,0.00012999,2]
[326989340,1715688640353,-500.0,0.00012999,2]
[326989341,1715688640362,-287.65,0.00012999,2]
[326989342,1715688640372,-151.0,0.00012999,2]
[326989343,1715688640381,-151.0,0.00012999,2]
[326989344,1715688640391,-559.12,0.00012999,2]
[326989345,1715688640401,-500.0,0.00012999,2]
[326989346,1715688640410,-293.64,0.00012999,2]
[326989347,1715688640419,-500.0,0.00012999,2]
[326989348,1715688640429,-500.0,0.00012999,2]
[326989349,1715688640439,-500.0,0.00012999,2]
[326989350,1715688640448,-313.11,0.00012999,2]
[326989351,1715688640457,-150.0,0.00012999,2]
[326989352,1715688640467,-150.0,0.00012999,2]
[326989353,1715688640477,-258.15,0.00012999,2]
[326989354,1715688640487,-596.72,0.00012999,2]
[326989355,1715688640496,-500.0,0.00012999,2]
[326989356,1715688640506,-500.0,0.00012999,2]
[326989357,1715688640515,-500.0,0.00012999,2]
[326989358,1715688640526,-500.0,0.00012999,2]
[326989359,1715688640535,-158.91,0.00012999,2]
[326989360,1715688640544,-462.19,0.00012999,2]
[326989361,1715688640554,-211.393526,0.00012999,2]
[326989362,1715688640563,-211.393526,0.00012999,2]
[326989363,1715688640572,-500.0,0.00012999,2]
[326989364,1715688640582,-437.11,0.00012999,2]
[326989365,1715688640591,-151.0,0.00012999,2]
[326989366,1715688640600,-542.96,0.00012999,2]
[326989367,1715688640615,-151.0,0.00012999,2]
[326989368,1715688640625,-500.0,0.00012999,2]
[326989369,1715688640634,-500.0,0.00012999,2]
[326989370,1715688640643,-500.0,0.00012999,2]
[326989371,1715688640654,-500.0,0.00012999,2]
[326989372,1715688640664,-500.0,0.00012999,2]
[326989373,1715688640674,-500.0,0.00012999,2]
[326989374,1715688640684,-500.0,0.00012999,2]
[326989375,1715688640695,-272.7,0.00012999,2]
[326989376,1715688640705,-341.87,0.00012999,2]
[326989377,1715688640715,-1243.3516904,0.00012999,2]
[326989378,1715688640724,-500.0,0.00012999,2]
[326989379,1715688640736,-500.0,0.00012999,2]
[326989380,1715688640745,-500.0,0.00012999,2]
[326989381,1715688640754,-426.67,0.00012999,2]
[326989382,1715688640764,-262.32,0.00012999,2]
[326989383,1715688640773,-500.0,0.00012999,2]
[326989384,1715688640783,-399.42,0.00012999,2]
[326989385,1715688640792,-169.959184,0.00012999,2]
[326989386,1715688640802,-500.0,0.00012999,2]
[326989387,1715688640811,-500.0,0.00012999,2]
[326989388,1715688640820,-500.0,0.00012999,2]
[326989389,1715688640829,-500.0,0.00012999,2]
[326989390,1715688640840,-500.0,0.00012999,2]
[326989391,1715688640849,-500.0,0.00012999,2]
[326989392,1715688640858,-500.0,0.00012999,2]
[326989393,1715688640868,-500.0,0.00012999,2]
[326989394,1715688640877,-500.0,0.00012999,2]
[326989395,1715688640887,-469.7,0.00012999,2]
[326989396,1715688640896,-259.74,0.00012999,2]
[326989397,1715688640906,-169.959184,0.00012999,2]
[326989398,1715688640916,-500.0,0.00012999,2]
[326989399,1715688640925,-194.21,0.00012999,2]
[326989400,1715688640935,-233.02,0.00012999,2]
[326989401,1715688640945,-500.0,0.00012999,2]
[326989402,1715688640954,-500.0,0.00012999,2]
[326989403,1715688640964,-500.0,0.00012999,2]
[326989404,1715688640973,-500.0,0.00012999,2]
[326989405,1715688640984,-500.0,0.00012999,2]
[326989406,1715688640994,-500.0,0.00012999,2]
[326989407,1715688641003,-500.0,0.00012999,2]
[326989408,1715688641013,-500.0,0.00012999,2]
[326989409,1715688641023,-229.48856939,0.00012999,2]
[326989410,1715688641032,-151.0,0.00012999,2]
[326989411,1715688641042,-151.0,0.00012999,2]
[326989412,1715688641051,-151.0,0.00012999,2]
[326989413,1715688641061,-151.0,0.00012999,2]
[326989414,1715688641070,-500.0,0.00012999,2]
[326989415,1715688641079,-500.0,0.00012999,2]
[326989416,1715688641089,-500.0,0.00012999,2]
[326989417,1715688641098,-500.0,0.00012999,2]
[326989418,1715688641108,-500.0,0.00012999,2]
[326989419,1715688641117,-500.0,0.00012999,2]
[326989420,1715688641127,-500.0,0.00012999,2]
[326989421,1715688641137,-500.0,0.00012999,2]
[326989422,1715688641146,-851.74,0.00012999,2]
[326989423,1715688641156,-500.0,0.00012999,2]
[326989424,1715688641165,-851.74,0.00012999,2]
[326989425,1715688641174,-851.74,0.00012999,2]
[326989426,1715688641184,-500.0,0.00012999,2]
[326989427,1715688641193,-500.0,0.00012999,2]
[326989428,1715688641202,-851.74,0.00012999,2]
[326989429,1715688641212,-500.0,0.00012999,2]
[326989430,1715688641221,-500.0,0.00012999,2]
[326989431,1715688641234,-500.0,0.00012999,2]
[326989432,1715688641243,-851.74,0.00012999,2]
[326989433,1715688641252,-500.0,0.00012999,2]
[326989434,1715688641261,-500.0,0.00012999,2]
[326989435,1715688641270,-851.74,0.00012999,2]
[326989436,1715688641279,-500.0,0.00012999,2]
[326989437,1715688641289,-500.0,0.00012999,2]
[326989438,1715688641298,-851.74,0.00012999,2]
[326989439,1715688641307,-500.0,0.00012999,2]
[326989440,1715688641317,-500.0,0.00012999,2]
[326989441,1715688641326,-500.0,0.00012999,2]
[326989442,1715688641335,-851.74,0.00012999,2]
[326989443,1715688641345,-156.05,0.00012999,2]
[326989444,1715688641355,-580.43,0.00012999,2]
[326989445,1715688641364,-851.74,0.00012999,2]
[326989446,1715688641373,-851.74,0.00012999,2]
[326989447,1715688641382,-851.74,0.00012999,2]
[326989448,1715688641391,-316.74,0.00012999,2]
[326989449,1715688641401,-851.74,0.00012999,2]
[326989450,1715688641411,-851.74,0.00012999,2]
[326989451,1715688641420,-851.74,0.00012999,2]
[326989452,1715688641429,-851.74,0.00012999,2]
[326989453,1715688641438,-851.74,0.00012999,2]
[326989454,1715688641447,-851.74,0.00012999,2]
[326989455,1715688641457,-851.74,0.00012999,2]
[326989456,1715688641466,-851.74,0.00012999,2]
[326989457,1715688641475,-851.74,0.00012999,2]
[326989458,1715688641487,-851.74,0.00012999,2]
[326989459,1715688641496,-851.79439433,0.00012999,2]
[326989460,1715688641505,-500.0,0.00012999,2]
[326989461,1715688641515,-598.15,0.00012999,2]
[326989462,1715688641524,-500.0,0.00012999,2]
[326989463,1715688641533,-506.85,0.00012999,2]
[326989464,1715688641542,-151.0,0.00012999,2]
[326989465,1715688641552,-151.0,0.00012999,2]
[326989466,1715688641562,-500.0,0.00012999,2]
[326989467,1715688641571,-538.41,0.00012999,2]
[326989468,1715688641581,-151.0,0.00012999,2]
[326989469,1715688641590,-921.17486,0.00012999,2]
[326989470,1715688641599,-151.0,0.00012999,2]
[326989471,1715688641609,-921.17486,0.00012999,2]
[326989472,1715688641622,-921.17486,0.00012999,2]
[326989473,1715688641631,-921.17486,0.00012999,2]
[326989474,1715688641640,-151.0,0.00012999,2]